bitfinex/quotes_SOLUSD_20241031
["timestamp","ask_amount","ask_price","bid_price","bid_amount"]
[1730344667633,10.15903036,175.87,175.86,0.0989624]
[1730344667943,16.44763036,175.87,175.86,0.0989624]
[1730344669512,40.22451436,175.87,175.86,0.0989624]
[1730344669826,45.91051436,175.87,175.86,0.0989624]
[1730344672940,16.44763036,175.87,175.86,0.0989624]
[1730344673123,6.41409,175.87,175.86,5.7852624]
[1730344673327,0.12549,175.87,175.86,5.7852624]
[1730344673533,10.15903036,175.87,175.86,0.0989624]
[1730344678244,0.12549,175.87,175.86,0.0989624]
[1730344679038,10.03354036,175.88,175.86,0.0989624]
[1730344679242,80.03354036,175.9,175.86,20.0010624]
[1730344679927,10.03354036,175.89,175.86,20.0010624]
[1730344681839,80.03354036,175.9,175.86,20.0010624]
[1730344682046,80.03354036,175.87,175.86,0.0989624]
[1730344682349,80.15903036,175.87,175.86,0.0989624]
[1730344682520,103.93591436,175.87,175.86,0.0989624]
[1730344683625,109.62191436,175.87,175.86,0.0989624]
[1730344686229,70.12549,175.87,175.86,0.0989624]
[1730344687244,80.03354036,175.89,175.86,5.7852624]
[1730344687450,0.12549,175.88,175.86,20.0010624]
[1730344693235,70.12549,175.87,175.86,20.0010624]
[1730344693552,70.12549,175.87,175.86,14.3147624]
[1730344695661,70.12549,175.87,175.86,20.0010624]
[1730344702358,80.15903036,175.87,175.86,0.0989624]
[1730344703757,103.93591436,175.87,175.86,0.0989624]
[1730344704765,93.902374,175.87,175.86,0.0989624]
[1730344706673,70.12549,175.87,175.86,5.7852624]
[1730344706975,70.12549,175.87,175.86,0.0989624]
[1730344710890,80.15903036,175.87,175.86,0.0989624]
[1730344712375,85.84503036,175.87,175.86,0.0989624]
[1730344712769,80.15903036,175.87,175.86,0.0989624]
[1730344713454,70.12549,175.87,175.86,0.0989624]
[1730344718569,80.15903036,175.87,175.86,0.0989624]
[1730344718779,70.12549,175.87,175.86,0.0989624]
[1730344719384,70.0,175.89,175.86,5.7852624]
[1730344719683,70.0,175.89,175.86,30.03460276]
[1730344719886,70.0,175.89,175.86,20.0010624]
[1730344720382,80.03354036,175.89,175.86,20.0010624]
[1730344720889,0.12549,175.88,175.86,20.0010624]
[1730344721685,0.12549,175.88,175.86,30.03460276]
[1730344722384,70.0,175.89,175.86,30.03460276]
[1730344722754,0.12549,175.9,175.86,30.03460276]
[1730344725772,0.12549,175.9,175.87,10.03354036]
[1730344725972,0.12549,175.9,175.88,5.6856]
[1730344728379,70.0,175.93,175.89,10.03354036]
[1730344728560,0.12549,175.92,175.89,10.03354036]
[1730344729281,70.0,175.91,175.89,10.03354036]
[1730344729484,70.0,175.91,175.89,5.6853]
[1730344730088,70.0,175.91,175.89,15.71884036]
[1730344732088,0.12549,175.92,175.89,15.71884036]
[1730344734264,0.12549,175.92,175.9,10.03354036]
[1730344734677,0.12549,175.92,175.88,14.2142]
[1730344734678,70.0,175.93,175.91,10.03354036]
[1730344734875,70.0,175.93,175.92,10.03354036]
[1730344735277,70.12549,175.93,175.92,10.03354036]
[1730344735888,0.12549,175.93,175.92,10.03354036]
[1730344738998,70.12549,175.93,175.92,10.03354036]
[1730344739293,0.12549,175.93,175.92,10.03354036]
[1730344740786,70.0,175.95,175.92,29.92894036]
[1730344741098,0.12549,175.94,175.93,10.03354036]
[1730344741474,70.0,175.95,175.93,10.03354036]
[1730344741680,0.12549,175.96,175.94,10.03354036]
[1730344742791,70.0,175.95,175.94,10.03354036]
[1730344743101,70.12549,175.95,175.94,10.03354036]
[1730344743998,70.12549,175.95,175.93,10.03354036]
[1730344744372,0.12549,175.9,175.87,19.901]
[1730344745885,0.12549,175.9,175.87,29.93454036]
[1730344746299,70.0,175.93,175.89,10.03354036]
[1730344746598,70.0,175.93,175.91,10.03354036]
[1730344747397,70.0,175.93,175.9,10.03354036]
[1730344747600,70.0,175.93,175.91,10.03354036]
[1730344749000,70.0,175.93,175.91,15.71814036]
[1730344749501,70.0,175.93,175.92,10.03354036]
[1730344749703,70.12549,175.93,175.92,10.03354036]
[1730344751004,70.0,175.96,175.92,29.92894036]
[1730344751190,70.0,175.96,175.95,10.03354036]
[1730344752201,70.0,175.98,175.95,29.92544036]
[1730344752403,70.0,175.98,175.97,10.03354036]
[1730344752606,70.0,176.0,175.97,10.03354036]
[1730344752791,70.0,176.0,175.99,10.03354036]
[1730344754185,70.12549,176.0,175.99,10.03354036]
[1730344756211,70.0,176.02,175.99,29.92094036]
[1730344756501,70.0,176.02,176.0,10.03354036]
[1730344757203,70.0,176.02,176.01,10.03354036]
[1730344757411,70.12549,176.02,176.01,10.03354036]
[1730344757579,70.12549,176.02,176.0,10.03354036]
[1730344757785,0.12549,176.01,176.0,10.03354036]
[1730344764494,0.12549,176.01,175.99,10.03354036]
[1730344766389,0.12549,176.01,175.99,15.71554036]
[1730344775199,0.12549,175.98,175.96,29.92424036]
[1730344775408,0.12549,175.98,175.96,14.2077]
[1730344776115,0.12549,175.98,175.96,19.8908]
[1730344779826,0.12549,175.98,175.91,43.8143]
[1730344779827,70.0,175.97,175.94,5.6834]
[1730344780032,0.12549,175.96,175.94,5.6834]
[1730344780333,0.12549,175.94,175.91,10.03354036]
[1730344781321,0.12549,175.94,175.9,24.24594036]
[1730344781524,0.12549,175.94,175.91,20.0]
[1730344781826,0.12549,175.94,175.9,29.93094036]
[1730344782131,0.12549,175.94,175.91,10.03354036]
[1730344783032,70.0,175.93,175.9,14.2124]
[1730344783430,0.12549,175.92,175.9,19.8973]
[1730344783932,70.0,175.91,175.9,14.2124]
[1730344784309,70.12549,175.91,175.9,14.2124]
[1730344784924,70.12549,175.91,175.89,10.03354036]
[1730344786819,70.12549,175.91,175.89,15.71874036]
[1730344787332,70.12549,175.91,175.89,5.6852]
[1730344788318,70.12549,175.91,175.89,15.71874036]
[1730344791538,70.12549,175.91,175.89,5.6852]
[1730344791708,70.12549,175.91,175.88,10.03354036]
[1730344791910,70.12549,175.91,175.89,10.03354036]
[1730344792736,70.12549,175.91,175.89,15.71864036]
[1730344800840,70.12549,175.91,175.88,10.03354036]
[1730344801444,0.12549,175.9,175.88,10.03354036]
[1730344802532,0.12549,175.9,175.88,15.71884036]
[1730344804419,0.12549,175.9,175.87,58.36344036]
[1730344804815,0.12549,175.9,175.88,10.03354036]
[1730344805614,0.12549,175.9,175.88,5.6854]
[1730344805819,70.0,175.87,175.86,0.0989624]
[1730344806135,80.15903036,175.87,175.86,0.0989624]
[1730344807215,109.62191436,175.87,175.86,0.0989624]
[1730344808421,103.93591436,175.87,175.86,0.0989624]
[1730344808623,70.12549,175.87,175.86,0.0989624]
[1730344809143,80.15903036,175.87,175.86,0.0989624]
[1730344809518,103.93591436,175.87,175.86,0.0989624]
[1730344809712,109.62191436,175.87,175.86,0.0989624]
[1730344810146,103.93591436,175.87,175.86,0.0989624]
[1730344811353,93.902374,175.87,175.86,0.0989624]
[1730344811823,103.93591436,175.87,175.86,0.0989624]
[1730344814934,109.72191436,175.87,175.86,0.0989624]
[1730344815358,129.72191436,175.87,175.86,0.0989624]
[1730344816132,151.96251436,175.87,175.86,0.0989624]
[1730344844177,100.03354036,175.87,175.86,0.0989624]
[1730344844381,80.03354036,175.87,175.86,0.0989624]
[1730344845296,85.84503036,175.87,175.86,0.0989624]
[1730344845583,105.84503036,175.87,175.86,0.0989624]
[1730344846289,129.62191436,175.87,175.86,0.0989624]
[1730344846487,129.72191436,175.87,175.86,0.0989624]
[1730344848667,176.3083758,175.87,175.86,0.0989624]
[1730344849074,176.4083758,175.87,175.86,0.0989624]
[1730344849871,176.4083758,175.87,175.75,10.03354036]
[1730344849872,70.0,175.78,175.76,5.6892]
[1730344850590,70.0,175.76,175.75,14.2241]
[1730344850888,70.12549,175.76,175.75,14.2241]
[1730344852686,0.12549,175.75,175.73,5.6905]
[1730344854075,0.12549,175.75,175.72,19.9178]
[1730344854379,70.12549,175.73,175.7,31.06544036]
[1730344854892,70.12549,175.73,175.7,45.29414036]
[1730344855263,70.12549,175.73,175.71,10.03354036]
[1730344855686,70.12549,175.73,175.72,5.6908]
[1730344855886,70.0,175.75,175.72,15.72434036]
[1730344856083,70.0,175.75,175.73,10.03354036]
[1730344856284,0.12549,175.76,175.73,10.03354036]
[1730344857695,0.12549,175.76,175.74,5.6902]
[1730344858595,70.0,175.75,175.74,5.6902]
[1730344858816,70.12549,175.75,175.74,5.6902]
[1730344860194,0.12549,175.75,175.74,5.6902]
[1730344860391,70.0,175.79,175.74,29.94924036]
[1730344860576,70.0,175.79,175.75,10.03354036]
[1730344861200,70.0,175.79,175.74,19.9157]
[1730344861201,80.03354036,175.79,175.74,29.94924036]
[1730344861683,0.12549,175.78,175.75,10.03354036]
[1730344862604,0.12549,175.78,175.74,10.03354036]
[1730344863381,70.0,175.76,175.72,10.03354036]
[1730344863903,0.12549,175.75,175.71,29.95254036]
[1730344864603,70.0,175.74,175.71,29.95254036]
[1730344865099,70.0,175.74,175.71,19.919]
[1730344865901,70.0,175.74,175.71,29.95254036]
[1730344866083,70.0,175.74,175.71,19.919]
[1730344866602,70.0,175.74,175.71,29.95254036]
[1730344866976,70.0,175.74,175.71,19.919]
[1730344867801,0.12549,175.73,175.71,19.919]
[1730344868704,0.12549,175.73,175.71,24.26144036]
[1730344869000,0.12549,175.73,175.71,14.2279]
[1730344870305,0.12549,175.73,175.71,19.919]
[1730344871205,0.12549,175.73,175.71,29.95254036]
[1730344872084,0.12549,175.73,175.71,14.2279]
[1730344873493,0.12549,175.73,175.71,19.919]
[1730344876283,0.12549,175.73,175.71,24.26144036]
[1730344877799,0.12549,175.73,175.71,29.95254036]
[1730344878209,0.12549,175.73,175.71,19.919]
[1730344879196,70.0,175.72,175.71,14.2279]
[1730344879405,70.12549,175.72,175.71,14.2279]
[1730344884519,1.6,203.6,175.71,14.2279]
[1730344884520,0.12549,175.73,175.71,29.95254036]
[1730344885396,0.12549,175.73,175.71,19.919]
[1730344891002,0.12549,175.73,175.71,14.2279]
[1730344891422,70.0,175.72,175.71,14.2279]
[1730344891605,70.12549,175.72,175.71,14.2279]
[1730344892718,80.15903036,175.72,175.71,14.2279]
[1730344893018,70.0,175.7,175.69,5.6918]
[1730344893220,70.12549,175.7,175.69,5.6918]
[1730344894097,103.93591436,175.7,175.68,0.6007928]
[1730344894397,33.93591436,175.69,175.68,0.6007928]
[1730344908030,99.8618758,175.69,175.68,0.4753928]
[1730344908216,70.0,175.6,175.58,14.2385]
[1730344909526,10.15903036,175.59,175.58,14.2385]
[1730344910035,70.0,175.58,175.55,19.9372]
[1730344910250,0.12549,175.57,175.55,19.9372]
[1730344914233,0.12549,175.57,175.55,10.03354036]
[1730344915428,0.12549,175.57,175.56,5.696]
[1730344916132,0.12549,175.59,175.56,29.96964036]
[1730344918534,0.12549,175.59,175.56,19.9361]
[1730344918744,0.12549,175.59,175.56,29.96964036]
[1730344920122,0.12549,175.59,175.57,10.03354036]
[1730344920434,0.12549,175.59,175.57,19.935]
[1730344923631,80.03354036,175.62,175.57,29.96854036]
[1730344923850,0.12549,175.61,175.58,10.03354036]
[1730344924916,70.0,175.62,175.59,29.96624036]
[1730344926646,0.12549,175.61,175.59,14.2377]
[1730344926851,0.12549,175.61,175.59,19.9327]
[1730344927149,0.12549,175.61,175.59,14.2377]
[1730344927946,70.0,175.62,175.59,24.27124036]
[1730344928156,80.03354036,175.64,175.59,24.27124036]
[1730344928323,0.12549,175.63,175.59,24.27124036]
[1730344929150,0.12549,175.63,175.59,29.96624036]
[1730344930729,80.03354036,175.62,175.59,19.9327]
[1730344931245,80.03354036,175.62,175.59,14.2377]
[1730344931626,70.0,175.62,175.59,14.2377]
[1730344932041,70.12549,175.6,175.59,14.2377]
[1730344933136,0.12549,175.6,175.58,10.03354036]
[1730344933333,70.0,175.62,175.58,10.03354036]
[1730344933527,70.0,175.62,175.59,10.03354036]
[1730344935033,0.12549,175.63,175.59,10.03354036]
[1730344935546,0.12549,175.63,175.6,10.03354036]
[1730344936148,70.0,175.62,175.59,10.03354036]
[1730344936328,70.0,175.62,175.58,10.03354036]
[1730344937649,70.0,175.62,175.59,19.9327]
[1730344940859,70.0,175.62,175.58,10.03354036]
[1730344940860,70.0,175.59,175.55,14.2402]
[1730344941084,80.03354036,175.59,175.55,14.2402]
[1730344941235,70.0,175.59,175.56,10.03354036]
[1730344942262,70.0,175.59,175.57,19.935]
[1730344943150,0.12549,175.58,175.57,19.935]
[1730344944445,0.12549,175.58,175.57,14.2393]
[1730344946362,70.0,175.57,175.55,10.03354036]
[1730344947065,70.0,175.57,175.54,10.03354036]
[1730344947453,70.0,175.57,175.56,5.696]
[1730344947761,70.12549,175.57,175.56,5.696]
[1730344948661,70.0,175.61,175.56,58.44984036]
[1730344948884,70.0,175.61,175.57,10.03354036]
[1730344950364,0.12549,175.6,175.57,10.03354036]
[1730344950564,0.12549,175.6,175.56,58.44984036]
[1730344952844,0.12549,175.6,175.57,10.03354036]
[1730344954168,0.12549,175.6,175.58,19.9339]
[1730344955966,70.0,175.59,175.58,19.9339]
[1730344956143,70.12549,175.59,175.58,14.2385]
[1730344957246,0.12549,175.58,175.56,28.4802]
[1730344959474,70.0,175.57,175.55,19.9372]
[1730344959646,80.03354036,175.57,175.55,19.9372]
[1730344959846,70.0,175.57,175.55,19.9372]
[1730344960770,0.12549,175.56,175.52,10.03354036]
[1730344962566,0.12549,175.56,175.53,19.9395]
[1730344971587,70.0,175.55,175.53,19.9395]
[1730344974482,70.0,175.55,175.53,14.2425]
[1730344975276,10.03354036,175.59,175.54,30.03354036]
[1730344975579,70.0,175.59,175.57,10.03354036]
[1730344976659,70.0,175.59,175.57,14.239]
[1730344977269,70.0,175.59,175.57,24.27254036]
[1730344977470,0.12549,175.58,175.57,14.239]
[1730344979287,0.12549,175.58,175.55,10.03354036]
[1730344980390,0.12549,175.58,175.56,10.03354036]
[1730344980687,70.0,175.61,175.57,10.03354036]
[1730344980891,70.0,175.61,175.59,10.03354036]
[1730344981271,70.0,175.61,175.58,10.03354036]
[1730344982183,70.0,175.61,175.57,10.03354036]
[1730344982773,70.0,175.61,175.58,29.96744036]
[1730344984596,70.0,175.63,175.59,10.03354036]
[1730344984893,0.12549,175.62,175.6,10.03354036]
[1730344985690,0.12549,175.62,175.58,38.51034036]
[1730344986079,0.12549,175.62,175.58,10.03354036]
[1730344986414,0.12549,175.62,175.56,10.03354036]
[1730344986415,70.0,175.59,175.56,10.03354036]
[1730344986595,70.0,175.59,175.55,10.03354036]
[1730344986792,70.0,175.59,175.56,19.9361]
[1730344987773,0.12549,175.58,175.56,19.9361]
[1730344989396,0.12549,175.58,175.56,14.2401]
[1730344991199,0.12549,175.58,175.55,10.03354036]
[1730344991389,0.12549,175.58,175.56,10.03354036]
[1730344993011,0.12549,175.58,175.57,5.6957]
[1730344994494,70.0,175.61,175.57,29.96854036]
[1730344994695,70.0,175.61,175.59,10.03354036]
[1730344994888,70.0,175.61,175.58,10.03354036]
[1730344995685,0.12549,175.6,175.59,19.9327]
[1730344996594,0.12549,175.6,175.59,14.2377]
[1730345000927,70.0,175.59,175.56,19.9361]
[1730345001221,70.0,175.59,175.56,29.96964036]
[1730345002614,21.9028,175.65,175.56,29.96964036]
[1730345002615,70.0,175.61,175.58,10.03354036]
[1730345002817,0.12549,175.6,175.57,10.03354036]
[1730345004002,0.12549,175.6,175.58,19.9339]
[1730345004203,70.0,175.59,175.58,19.9339]
[1730345004503,70.12549,175.59,175.58,19.9339]
[1730345005599,70.12549,175.59,175.58,14.2385]
[1730345006228,70.0,175.57,175.56,5.696]
[1730345006426,70.12549,175.57,175.56,5.696]
[1730345008222,70.12549,175.57,175.55,14.2407]
[1730345008223,0.12549,175.56,175.55,14.2407]
[1730345008397,0.12549,175.56,175.55,19.937]
[1730345008909,0.12549,175.56,175.53,10.03354036]
[1730345009120,0.12549,175.56,175.53,19.9394]
[1730345009324,0.12549,175.56,175.53,29.97294036]
[1730345010609,70.0,175.55,175.53,19.9394]
[1730345012012,70.0,175.55,175.53,14.2425]
[1730345013625,0.12549,175.54,175.53,14.2425]
[1730345014226,70.12549,175.51,175.5,0.6007928]
[1730345014419,80.15903036,175.51,175.5,0.6007928]
[1730345014923,70.12549,175.51,175.5,0.6007928]
[1730345016234,70.12549,175.51,175.5,6.2987928]
[1730345017110,70.12549,175.51,175.5,0.6007928]
[1730345017309,80.15903036,175.51,175.5,0.6007928]
[1730345018109,103.93591436,175.51,175.5,0.6007928]
[1730345020141,109.73351436,175.51,175.5,0.6007928]
[1730345020310,129.73351436,175.51,175.5,0.6007928]
[1730345022321,103.93591436,175.51,175.5,0.6007928]
[1730345030837,104.03591436,175.51,175.5,0.6007928]
[1730345033722,103.93591436,175.51,175.5,0.6007928]
[1730345034043,93.902374,175.51,175.5,0.6007928]
[1730345034921,103.93591436,175.51,175.5,0.6007928]
[1730345035124,93.902374,175.51,175.5,0.6007928]
[1730345036242,103.93591436,175.51,175.5,0.6007928]
[1730345036440,93.902374,175.51,175.5,6.2987928]
[1730345039434,93.902374,175.51,175.5,0.6007928]
[1730345047556,103.93591436,175.51,175.5,0.6007928]
[1730345053037,109.73351436,175.51,175.5,0.6007928]
[1730345054537,129.73351436,175.51,175.5,0.6007928]
[1730345074574,70.0,175.41,175.35,10.03354036]
[1730345074866,93.902374,175.37,175.34,16.5175]
[1730345075240,93.902374,175.37,175.35,5.7028]
[1730345075444,93.902374,175.37,175.32,14.8595928]
[1730345075445,93.902374,175.37,175.36,10.90808686]
[1730345075664,103.93591436,175.37,175.36,5.20558686]
[1730345075870,103.93591436,175.37,175.36,3.20558686]
[1730345080953,103.93591436,175.37,175.36,18.94162722]
[1730345080954,70.0,175.37,175.36,18.94162722]
[1730345081253,70.0,175.37,175.36,8.90808686]
[1730345083770,70.12549,175.37,175.36,8.90808686]
[1730345087969,70.12549,175.37,175.36,18.94162722]
[1730345091779,70.12549,175.37,175.36,8.90808686]
[1730345092473,70.12549,175.37,175.36,18.94162722]
[1730345095956,70.0,175.37,175.36,18.94162722]
[1730345097686,70.12549,175.37,175.36,18.94162722]
[1730345099359,0.1,175.45,175.36,18.94162722]
[1730345099360,70.0,175.39,175.36,18.94162722]
[1730345099566,0.12549,175.38,175.37,10.03354036]
[1730345100075,70.0,175.39,175.37,10.03354036]
[1730345100255,70.0,175.39,175.38,10.03354036]
[1730345100962,70.0,175.39,175.36,23.16438686]
[1730345100963,70.0,175.39,175.37,10.03354036]
[1730345101574,70.12549,175.39,175.38,5.7019]
[1730345102379,70.12549,175.39,175.38,15.73544036]
[1730345102688,70.0,175.39,175.38,15.73544036]
[1730345102870,0.12549,175.4,175.38,29.99014036]
[1730345103275,0.12549,175.4,175.39,10.03354036]
[1730345103662,70.0,175.41,175.39,15.73504036]
[1730345103871,0.12549,175.4,175.39,19.9554]
[1730345104175,0.12549,175.4,175.39,29.98894036]
[1730345104579,70.0,175.39,175.37,5.702]
[1730345104873,70.0,175.39,175.37,15.73554036]
[1730345105463,70.0,175.39,175.37,29.99104036]
[1730345106584,70.0,175.39,175.38,15.73544036]
[1730345106877,70.12549,175.39,175.38,15.73544036]
[1730345109495,0.12549,175.38,175.37,14.2555]
[1730345109783,70.12549,175.37,175.36,3.20558686]
[1730345110157,70.12549,175.37,175.36,8.90808686]
[1730345110970,70.12549,175.37,175.36,18.94162722]
[1730345111168,0.12549,175.37,175.36,18.94162722]
[1730345111368,0.12549,175.38,175.36,33.19792722]
[1730345111583,0.12549,175.38,175.37,10.03354036]
[1730345112587,70.0,175.39,175.37,10.03354036]
[1730345112767,70.12549,175.39,175.38,10.03354036]
[1730345113994,70.12549,175.39,175.38,15.73544036]
[1730345116503,70.0,175.41,175.38,29.99014036]
[1730345116690,70.0,175.41,175.4,10.03354036]
[1730345117898,70.12549,175.41,175.4,15.73474036]
[1730345118802,70.0,175.41,175.4,15.73474036]
[1730345118981,0.12549,175.43,175.4,29.98784036]
[1730345119178,0.12549,175.43,175.42,10.03354036]
[1730345119993,70.0,175.44,175.42,29.98564036]
[1730345120191,70.0,175.44,175.43,10.03354036]
[1730345120390,70.12549,175.44,175.43,10.03354036]
[1730345121080,70.12549,175.44,175.43,15.73374036]
[1730345127891,70.0,175.46,175.43,29.98434036]
[1730345128089,0.12549,175.45,175.43,19.9508]
[1730345129610,0.12549,175.45,175.39,28.6077]
[1730345129786,0.12549,175.45,175.44,10.03354036]
[1730345131307,0.12549,175.45,175.44,15.73344036]
[1730345134114,70.0,175.41,175.39,10.03354036]
[1730345134620,70.0,175.41,175.37,19.9577]
[1730345134621,70.0,175.41,175.38,10.03354036]
[1730345135122,0.12549,175.4,175.39,19.9554]
[1730345135814,70.0,175.41,175.36,3.20558686]
[1730345135815,70.0,175.39,175.38,5.7018]
[1730345135988,70.12549,175.39,175.38,5.7018]
[1730345137099,0.12549,175.38,175.37,5.7022]
[1730345145211,70.12549,175.37,175.36,3.20558686]
[1730345145425,103.93591436,175.37,175.36,3.20558686]
[1730345149234,93.902374,175.37,175.36,3.20558686]
[1730345150816,103.93591436,175.37,175.36,3.20558686]
[1730345151321,109.63811436,175.37,175.36,3.20558686]
[1730345153418,70.0,175.37,175.36,3.20558686]
[1730345154718,93.902374,175.37,175.36,3.20558686]
[1730345155406,70.12549,175.37,175.36,8.90808686]
[1730345159937,0.12549,175.37,175.36,18.94162722]
[1730345160116,70.0,175.39,175.36,33.19792722]
[1730345160320,70.0,175.39,175.37,10.03354036]
[1730345160631,70.0,175.39,175.38,10.03354036]
[1730345160837,70.0,175.41,175.38,10.03354036]
[1730345161037,70.0,175.41,175.39,10.03354036]
[1730345161209,70.0,175.43,175.4,10.03354036]
[1730345161413,70.0,175.43,175.41,10.03354036]
[1730345161837,70.0,175.43,175.4,10.03354036]
[1730345162109,70.0,175.43,175.41,5.7009]
[1730345162519,70.0,175.43,175.41,15.73444036]
[1730345163332,70.0,175.43,175.36,31.81828686]
[1730345163333,70.0,175.43,175.42,10.03354036]
[1730345163639,0.12549,175.44,175.42,10.03354036]
[1730345163809,0.12549,175.44,175.43,10.03354036]
[1730345164012,70.0,175.45,175.43,10.03354036]
[1730345164316,10.03354036,175.49,175.37,48.5688]
[1730345164317,70.0,175.47,175.44,10.03354036]
[1730345164621,70.0,175.47,175.45,10.03354036]
[1730345165030,70.0,175.47,175.44,10.03354036]
[1730345165424,70.0,175.47,175.45,19.9486]
[1730345166320,0.12549,175.46,175.45,29.98214036]
[1730345166645,0.12549,175.46,175.45,19.9486]
[1730345166816,0.12549,175.46,175.45,14.249]
[1730345167216,70.12549,175.44,175.43,5.6999]
[1730345168414,70.12549,175.44,175.42,14.2514]
[1730345168621,0.12549,175.43,175.42,19.952]
[1730345170338,70.0,175.42,175.4,10.03354036]
[1730345170634,70.0,175.42,175.41,10.03354036]
[1730345170843,70.12549,175.42,175.41,10.03354036]
[1730345171421,70.12549,175.42,175.4,10.03354036]
[1730345171741,70.12549,175.42,175.41,5.7009]
[1730345177047,70.0,175.46,175.42,20.0]
[1730345177216,70.0,175.46,175.45,10.03354036]
[1730345177931,70.0,175.46,175.44,10.03354036]
[1730345178244,0.12549,175.45,175.43,10.03354036]
[1730345179053,0.12549,175.45,175.44,5.6999]
[1730345184428,23.902374,175.45,175.44,5.6999]
[1730345185030,70.0,175.44,175.43,14.2503]
[1730345185233,70.12549,175.44,175.43,14.2503]
[1730345185532,70.12549,175.44,175.43,19.9505]
[1730345186344,70.12549,175.44,175.4,10.03354036]
[1730345186654,0.12549,175.43,175.41,20.0]
[1730345187826,0.12549,175.43,175.41,29.98674036]
[1730345191253,70.0,175.47,175.42,30.03354036]
[1730345191558,70.0,175.49,175.46,10.03354036]
[1730345192349,0.12549,175.48,175.47,29.97984036]
[1730345194728,70.0,175.51,175.47,29.97984036]
[1730345194934,70.0,175.51,175.49,10.03354036]
[1730345195241,70.0,175.51,175.48,10.03354036]
[1730345195949,70.0,175.51,175.49,19.9441]
[1730345196251,0.12549,175.5,175.49,19.9441]
[1730345196655,0.12549,175.5,175.49,29.97764036]
[1730345199153,0.12549,175.5,175.48,10.03354036]
[1730345199651,0.12549,175.48,175.45,30.03354036]
[1730345200737,70.0,175.47,175.44,58.48294036]
[1730345201131,70.0,175.47,175.45,10.03354036]
[1730345201332,70.12549,175.47,175.46,5.6993]
[1730345203852,70.12549,175.47,175.44,38.53324036]
[1730345204558,70.12549,175.47,175.45,10.03354036]
[1730345205244,70.12549,175.47,175.46,5.6993]
[1730345208341,70.12549,175.47,175.44,38.53324036]
[1730345210258,70.12549,175.47,175.44,58.48294036]
[1730345213564,70.12549,175.47,175.45,10.03354036]
[1730345214639,70.12549,175.47,175.46,5.6993]
[1730345215939,70.0,175.5,175.46,29.98104036]
[1730345216147,70.0,175.5,175.47,10.03354036]
[1730345216345,70.0,175.5,175.46,29.98104036]
[1730345217268,70.0,175.48,175.46,19.9475]
[1730345217456,0.12549,175.47,175.46,19.9475]
[1730345217653,0.12549,175.47,175.44,15.73324036]
[1730345217974,0.12549,175.47,175.44,5.6997]
[1730345218647,0.12549,175.47,175.44,19.9495]
[1730345218847,0.12549,175.47,175.44,29.98304036]
[1730345219079,0.12549,175.47,175.45,10.03354036]
[1730345219257,0.12549,175.47,175.45,19.9486]
[1730345222079,70.12549,175.46,175.45,19.9486]
[1730345223173,70.12549,175.46,175.45,14.249]
[1730345229095,70.12549,175.44,175.43,5.7002]
[1730345232975,0.12549,175.43,175.42,19.9519]
[1730345234471,0.12549,175.43,175.42,14.2513]
[1730345237981,70.0,175.42,175.38,10.03354036]
[1730345239793,0.12549,175.41,175.37,58.50234036]
[1730345240995,0.12549,175.39,175.37,19.9577]
[1730345241182,70.12549,175.38,175.37,19.9577]
[1730345241686,70.12549,175.38,175.36,3.20558686]
[1730345241883,0.12549,175.37,175.36,3.20558686]
[1730345243676,0.12549,175.37,175.36,8.90808686]
[1730345245191,0.12549,175.37,175.36,3.20558686]
[1730345249695,62.39621436,175.37,175.36,3.20558686]
[1730345254297,56.69401436,175.37,175.36,3.20558686]
[1730345254493,40.47821436,175.37,175.36,3.20558686]
[1730345255584,0.12549,175.37,175.36,8.90808686]
[1730345255802,0.12549,175.37,175.36,3.20558686]
[1730345257083,0.12549,175.37,175.36,8.90808686]
[1730345259986,0.12549,175.37,175.36,3.20558686]
[1730345262809,70.0,175.38,175.36,18.94162722]